fUST/lending_fUST_20250624
["ID","MTS","AMOUNT","RATE_DAILY","PERIOD"]
[367204255,1750699839938,-460.0,0.00019596,2]
[367204256,1750699839948,-460.0,0.00019596,2]
[367204257,1750699839958,-460.0,0.00019596,2]
[367204258,1750699839968,-711.89,0.00019596,2]
[367204259,1750699839978,-575.13,0.00019596,2]
[367204260,1750699839987,-746.52,0.00019596,2]
[367204261,1750699839999,-368.88550851,0.00019596,2]
[367204262,1750699840009,-460.0,0.00019596,2]
[367204263,1750699840019,-460.0,0.00019596,2]
[367204264,1750699840029,-460.0,0.00019596,2]
[367204265,1750699840039,-549.73059524,0.00019596,2]
[367204266,1750699840049,-603.64,0.00019596,2]
[367204267,1750699840058,-460.0,0.00019596,2]
[367204268,1750699840068,-696.77,0.00019596,2]
[367204269,1750699840078,-560.71,0.00019596,2]
[367204270,1750699840088,-460.0,0.00019596,2]
[367204271,1750699840097,-635.45,0.00019596,2]
[367204272,1750699840107,-513.8,0.00019596,2]
[367204273,1750699840118,-556.7,0.00019596,2]
[367204274,1750699840127,-460.0,0.00019596,2]
[367204275,1750699840137,-460.0,0.00019596,2]
[367204276,1750699840147,-460.0,0.00019596,2]
[367204277,1750699840158,-460.0,0.00019596,2]
[367204278,1750699840167,-460.0,0.00019596,2]
[367204279,1750699840177,-917.08,0.00019596,2]
[367204280,1750699840187,-888.06,0.00019596,2]
[367204281,1750699840197,-431.26164576,0.00019596,2]
[367204282,1750699840207,-460.0,0.00019596,2]
[367204283,1750699840217,-468.45,0.00019596,2]
[367204284,1750699840226,-460.0,0.00019596,2]
[367204285,1750699840236,-460.0,0.00019596,2]
[367204287,1750699840247,-460.0,0.00019596,2]
[367204289,1750699840257,-653.03,0.00019596,2]
[367204291,1750699840267,-460.0,0.00019596,2]
[367204293,1750699840276,-500.0,0.00019596,2]
[367204295,1750699840286,-500.0,0.00019596,2]
[367204297,1750699840296,-579.85,0.00019596,2]
[367204300,1750699840306,-460.0,0.00019596,2]
[367204302,1750699840317,-460.0,0.00019596,2]
[367204304,1750699840328,-460.0,0.00019596,2]
[367204306,1750699840338,-460.0,0.00019596,2]
[367204308,1750699840349,-460.0,0.00019596,2]
[367204310,1750699840359,-1080.15,0.00019596,2]
[367204312,1750699840368,-460.0,0.00019596,2]
[367204314,1750699840378,-460.0,0.00019596,2]
[367204316,1750699840387,-400.96731701,0.00019596,2]
[367204318,1750699840397,-460.0,0.00019596,2]
[367204320,1750699840406,-460.0,0.00019596,2]
[367204322,1750699840416,-677.56,0.00019596,2]
[367204324,1750699840425,-460.0,0.00019596,2]
[367204326,1750699840435,-460.0,0.00019596,2]
[367204328,1750699840445,-460.0,0.00019596,2]
[367204330,1750699840455,-460.0,0.00019596,2]
[367204333,1750699840465,-500.0,0.00019596,2]
[367204334,1750699840475,-500.0,0.00019596,2]
[367204336,1750699840485,-460.0,0.00019596,2]
[367204338,1750699840500,-460.0,0.00019596,2]
[367204339,1750699840510,-787.95,0.00019596,2]
[367204340,1750699840520,-956.56,0.00019596,2]
[367204341,1750699840529,-460.0,0.00019596,2]
[367204342,1750699840539,-460.0,0.00019596,2]
[367204343,1750699840549,-937.38,0.00019596,2]
[367204344,1750699840561,-522.37,0.00019596,2]
[367204345,1750699840571,-877.72,0.00019596,2]
[367204346,1750699840581,-460.0,0.00019596,2]
[367204347,1750699840592,-493.67,0.00019596,2]
[367204349,1750699840605,-460.0,0.00019596,2]
[367204350,1750699840615,-871.52,0.00019596,2]
[367204351,1750699840624,-1276.79,0.00019596,2]
[367204352,1750699840634,-460.0,0.00019596,2]
[367204353,1750699840643,-460.0,0.00019596,2]
[367204354,1750699840653,-705.15,0.00019596,2]
[367204355,1750699840662,-460.0,0.00019596,2]
[367204357,1750699840673,-613.57,0.00019596,2]
[367204359,1750699840682,-925.32,0.00019596,2]
[367204361,1750699840692,-460.0,0.00019596,2]
[367204363,1750699840701,-460.0,0.00019596,2]
[367204365,1750699840710,-499.58800485,0.00019596,2]
[367204367,1750699840720,-460.0,0.00019596,2]
[367204368,1750699840730,-500.0,0.00019596,2]
[367204369,1750699840742,-460.0,0.00019596,2]
[367204370,1750699840752,-544.0,0.00019596,2]
[367204371,1750699840761,-527.24,0.00019596,2]
[367204372,1750699840771,-500.0,0.00019596,2]
[367204373,1750699840780,-500.0,0.00019596,2]
[367204374,1750699840790,-500.0,0.00019596,2]
[367204375,1750699840799,-500.0,0.00019596,2]
[367204376,1750699840809,-392.45728274,0.00019596,2]
[367204377,1750699840822,-500.0,0.00019596,2]
[367204378,1750699840832,-500.0,0.00019596,2]
[367204379,1750699840842,-500.0,0.00019596,2]
[367204380,1750699840852,-628.09793154,0.00019596,2]
[367204381,1750699840861,-500.0,0.00019596,2]
[367204382,1750699840871,-500.0,0.00019596,2]
[367204383,1750699840880,-500.0,0.00019596,2]
[367204384,1750699840890,-500.0,0.00019596,2]
[367204385,1750699840899,-500.0,0.00019596,2]
[367204386,1750699840909,-500.0,0.00019596,2]
[367204387,1750699840921,-500.0,0.00019596,2]
[367204388,1750699840932,-500.0,0.00019596,2]
[367204389,1750699840941,-500.0,0.00019596,2]
[367204390,1750699840951,-500.0,0.00019596,2]
[367204391,1750699840961,-500.0,0.00019596,2]
[367204392,1750699840971,-500.0,0.00019596,2]
[367204393,1750699840981,-500.0,0.00019596,2]
[367204394,1750699840991,-289.66855208,0.00019596,2]
[367204395,1750699841000,-500.0,0.00019596,2]
[367204396,1750699841010,-500.0,0.00019596,2]
[367204397,1750699841019,-500.0,0.00019596,2]
[367204398,1750699841029,-500.0,0.00019596,2]
[367204399,1750699841038,-460.0,0.00019597,2]
[367204400,1750699841049,-460.0,0.00019597,2]
[367204401,1750699841058,-460.0,0.00019597,2]
[367204402,1750699841068,-507.05,0.00019597,2]
[367204403,1750699841077,-460.0,0.00019597,2]
[367204404,1750699841087,-460.0,0.00019597,2]
[367204405,1750699841096,-460.0,0.00019597,2]
[367204406,1750699841107,-500.0,0.00019597,2]
[367204407,1750699841117,-500.0,0.00019597,2]
[367204408,1750699841127,-460.0,0.00019597,2]
[367204409,1750699841137,-580.98281249,0.00019597,2]
[367204410,1750699841147,-385.51949107,0.00019597,2]
[367204411,1750699841157,-460.0,0.00019597,2]
[367204412,1750699841167,-460.0,0.00019597,2]
[367204413,1750699841177,-460.0,0.00019597,2]
[367204414,1750699841187,-460.0,0.00019597,2]
[367204415,1750699841197,-460.0,0.00019597,2]
[367204416,1750699841208,-460.0,0.00019597,2]
[367204417,1750699841218,-498.20280948,0.00019597,2]
[367204418,1750699841228,-460.0,0.00019597,2]
[367204419,1750699841238,-460.0,0.00019597,2]
[367204420,1750699841249,-460.0,0.00019597,2]
[367204421,1750699841259,-607.83801552,0.00019597,2]
[367204422,1750699841269,-460.0,0.00019597,2]
[367204423,1750699841279,-572.49499452,0.00019597,2]
[367204424,1750699841289,-460.0,0.00019597,2]
[367204425,1750699841299,-460.0,0.00019597,2]
[367204426,1750699841309,-460.0,0.00019597,2]
[367204427,1750699841319,-460.0,0.00019597,2]
[367204428,1750699841328,-683.15,0.00019597,2]
[367204429,1750699841338,-463.86309918,0.00019597,2]
[367204430,1750699841348,-460.0,0.00019597,2]
[367204431,1750699841357,-460.0,0.00019597,2]
[367204432,1750699841368,-460.0,0.00019597,2]
[367204433,1750699841378,-450.0,0.00019597,2]
[367204434,1750699841388,-460.0,0.00019597,2]
[367204435,1750699841397,-167.54580761,0.00019597,2]
[367204436,1750699841408,-460.0,0.00019597,2]
[367204437,1750699841419,-594.71492387,0.00019597,2]
[367204438,1750699841429,-460.0,0.00019597,2]
[367204439,1750699841438,-392.78897617,0.00019597,2]
[367204440,1750699841448,-437.37471323,0.00019597,2]
[367204441,1750699841459,-228.03758262,0.00019597,2]
[367204442,1750699841469,-460.0,0.00019597,2]
[367204443,1750699841479,-460.0,0.00019597,2]
[367204444,1750699841492,-481.55,0.00019597,2]
[367204445,1750699841502,-428.51128961,0.00019597,2]
[367204446,1750699841512,-446.62338436,0.00019597,2]
[367204447,1750699841522,-348.55150417,0.00019597,2]
[367204448,1750699841532,-550.93,0.00019597,2]
[367204449,1750699841542,-475.38960573,0.00019597,2]
[367204450,1750699841552,-381.97526461,0.00019597,2]
[367204451,1750699841563,-460.0,0.00019597,2]
[367204452,1750699841572,-420.68166359,0.00019597,2]
[367204453,1750699841582,-460.0,0.00019597,2]
[367204454,1750699841594,-460.0,0.00019597,2]
[367204455,1750699841603,-460.0,0.00019597,2]
[367204456,1750699841613,-460.0,0.00019597,2]
[367204457,1750699841622,-460.0,0.00019597,2]
[367204458,1750699841632,-443.56236179,0.00019597,2]
[367204459,1750699841642,-432.1718533,0.00019597,2]
[367204460,1750699841652,-431.73699097,0.00019597,2]
[367204461,1750699841662,-438.33352767,0.00019597,2]
[367204462,1750699841672,-460.0,0.00019597,2]
[367204463,1750699841682,-460.0,0.00019597,2]
[367204464,1750699841691,-460.0,0.00019597,2]
[367204465,1750699841701,-460.0,0.00019597,2]
[367204466,1750699841711,-403.83987116,0.00019597,2]
[367204467,1750699841721,-460.0,0.00019597,2]
[367204468,1750699841730,-425.89665439,0.00019597,2]
[367204469,1750699841740,-460.0,0.00019597,2]
[367204470,1750699841750,-460.0,0.00019597,2]
[367204471,1750699841760,-589.63629964,0.00019597,2]
[367204472,1750699841770,-460.0,0.00019597,2]
[367204473,1750699841780,-419.29738682,0.00019597,2]
[367204474,1750699841790,-460.0,0.00019597,2]
[367204475,1750699841800,-561.32,0.00019597,2]
[367204476,1750699841813,-460.0,0.00019597,2]
[367204477,1750699841828,-460.0,0.00019597,2]
[367204478,1750699841837,-460.0,0.00019597,2]
[367204479,1750699841847,-1068.07,0.00019597,2]
[367204480,1750699841856,-460.0,0.00019597,2]
[367204481,1750699841866,-416.72315125,0.00019597,2]
[367204482,1750699841875,-460.0,0.00019597,2]
[367204483,1750699841885,-273.49843455,0.00019597,2]
[367204484,1750699841894,-494.81946361,0.00019597,2]
[367204485,1750699841904,-460.0,0.00019597,2]
[367204486,1750699841914,-534.1389537,0.00019597,2]
[367204487,1750699841924,-837.87,0.00019597,2]
[367204488,1750699841934,-693.93,0.00019597,2]
[367204489,1750699841944,-524.65,0.00019597,2]
[367204490,1750699841954,-460.0,0.00019597,2]
[367204491,1750699841963,-237.55222512,0.00019597,2]
[367204492,1750699841972,-460.0,0.00019597,2]
[367204493,1750699841982,-460.0,0.00019597,2]
[367204494,1750699841994,-328.1541745,0.00019597,2]
[367204495,1750699842004,-460.0,0.00019597,2]
[367204496,1750699842014,-513.21608021,0.00019597,2]
[367204497,1750699842024,-460.0,0.00019597,2]
[367204498,1750699842034,-460.0,0.00019597,2]
[367204499,1750699842044,-460.0,0.00019597,2]
[367204500,1750699842053,-460.0,0.00019597,2]
[367204501,1750699842063,-460.0,0.00019597,2]
[367204502,1750699842073,-460.0,0.00019597,2]
[367204503,1750699842084,-460.0,0.00019597,2]
[367204504,1750699842096,-443.1550167,0.00019597,2]
[367204505,1750699842105,-332.17818311,0.00019597,2]
[367204506,1750699842115,-460.0,0.00019597,2]
[367204507,1750699842124,-460.0,0.00019597,2]
[367204508,1750699842134,-460.0,0.00019597,2]
[367204509,1750699842144,-460.0,0.00019597,2]
[367204510,1750699842154,-523.86576857,0.00019597,2]
[367204511,1750699842164,-460.0,0.00019597,2]
[367204512,1750699842173,-460.0,0.00019597,2]
[367204513,1750699842183,-460.0,0.00019597,2]
[367204514,1750699842192,-460.0,0.00019597,2]
[367204515,1750699842202,-384.35353115,0.00019597,2]
[367204516,1750699842211,-300.0,0.00019597,2]
[367204517,1750699842220,-588.33,0.00019597,2]
[367204518,1750699842230,-460.0,0.00019597,2]
[367204519,1750699842239,-460.0,0.00019597,2]
[367204520,1750699842251,-402.91802025,0.00019597,2]
[367204521,1750699842260,-460.0,0.00019597,2]
[367204522,1750699842270,-552.86,0.00019597,2]
[367204523,1750699842279,-460.0,0.00019597,2]
[367204524,1750699842289,-555.09638383,0.00019597,2]
[367204525,1750699842298,-460.0,0.00019597,2]
[367204526,1750699842307,-460.0,0.00019597,2]
[367204527,1750699842317,-460.0,0.00019597,2]
[367204528,1750699842326,-460.0,0.00019597,2]
[367204529,1750699842335,-445.60766886,0.00019597,2]
[367204530,1750699842345,-460.0,0.00019597,2]
[367204531,1750699842354,-460.0,0.00019597,2]
[367204532,1750699842363,-460.0,0.00019597,2]
[367204533,1750699842373,-404.30911327,0.00019597,2]
[367204534,1750699842382,-460.0,0.00019597,2]
[367204535,1750699842391,-437.88585655,0.00019597,2]
[367204536,1750699842401,-459.59434396,0.00019597,2]
[367204537,1750699842410,-432.97271329,0.00019597,2]
[367204538,1750699842419,-460.0,0.00019597,2]
[367204539,1750699842429,-460.0,0.00019597,2]
[367204540,1750699842438,-460.0,0.00019597,2]
[367204541,1750699842448,-430.0,0.00019597,2]
[367204542,1750699842457,-460.0,0.00019597,2]
[367204543,1750699842467,-460.0,0.00019597,2]
[367204544,1750699842477,-446.4959103,0.00019597,2]
[367204545,1750699842486,-500.0,0.00019597,2]
[367204546,1750699842499,-489.72652483,0.00019597,2]
[367204547,1750699842509,-500.0,0.00019597,2]
[367204548,1750699842519,-413.70133724,0.00019597,2]
[367204549,1750699842528,-431.87286803,0.00019597,2]
[367204550,1750699842538,-352.74746823,0.00019597,2]
[367204551,1750699842548,-371.88467766,0.00019597,2]
[367204552,1750699842558,-421.42668973,0.00019597,2]
[367204553,1750699842568,-323.5592128,0.00019597,2]
[367204554,1750699842577,-157.09064962,0.00019597,2]
[367204555,1750699842587,-865.28,0.00019597,2]
[367204556,1750699842599,-668.39,0.00019597,2]
[367204557,1750699842610,-460.0,0.00019597,2]
[367204558,1750699842620,-2510.75,0.00019597,2]
[367204559,1750699842630,-216.25348547,0.00019597,2]
[367204560,1750699842641,-460.0,0.00019597,2]
[367204561,1750699842651,-460.0,0.00019597,2]
[367204562,1750699842660,-402.06632872,0.00019597,2]
[367204563,1750699842673,-460.0,0.00019597,2]
[367204564,1750699842683,-910.97,0.00019597,2]
[367204565,1750699842693,-460.0,0.00019597,2]
[367204566,1750699842703,-460.0,0.00019597,2]
[367204567,1750699842714,-460.0,0.00019597,2]
[367204568,1750699842723,-641.75,0.00019597,2]
[367204569,1750699842733,-460.0,0.00019597,2]
[367204570,1750699842744,-401.1486326,0.00019597,2]
[367204571,1750699842756,-617.29,0.00019597,2]
[367204572,1750699842765,-460.0,0.00019597,2]
[367204573,1750699842775,-430.0,0.00019597,2]
[367204574,1750699842784,-432.43100392,0.00019597,2]
[367204575,1750699842794,-460.0,0.00019597,2]
[367204576,1750699842804,-454.63145127,0.00019597,2]
[367204577,1750699842813,-460.0,0.00019597,2]
[367204578,1750699842823,-460.0,0.00019597,2]
[367204579,1750699842833,-500.62,0.00019597,2]
[367204580,1750699842842,-445.54688833,0.00019597,2]
[367204581,1750699842852,-1262.15,0.00019597,2]
[367204583,1750699842862,-460.0,0.00019597,2]
[367204584,1750699842872,-500.0,0.00019597,2]
[367204586,1750699842881,-500.0,0.00019597,2]
[367204587,1750699842891,-460.0,0.00019597,2]
[367204588,1750699842901,-437.43692131,0.00019597,2]
[367204589,1750699842911,-460.0,0.00019597,2]
[367204590,1750699842921,-410.96682637,0.00019597,2]
[367204591,1750699842931,-286.46887693,0.00019597,2]
[367204592,1750699842941,-11421.81,0.00019597,2]
[367204593,1750699842951,-1492.12,0.00019597,2]
[367204594,1750699842961,-460.0,0.00019597,2]
[367204595,1750699842971,-464.27,0.00019597,2]
[367204597,1750699842981,-460.0,0.00019597,2]
[367204599,1750699842991,-460.0,0.00019597,2]
[367204601,1750699843004,-460.0,0.00019597,2]
[367204604,1750699843013,-1784.67,0.00019597,2]
[367204606,1750699843023,-460.0,0.00019597,2]
[367204608,1750699843033,-460.0,0.00019597,2]
[367204609,1750699843043,-410.0,0.00019597,2]
[367204610,1750699843053,-940.03,0.00019597,2]
[367204611,1750699843063,-2081.55,0.00019597,2]
[367204612,1750699843073,-460.0,0.00019597,2]
[367204613,1750699843084,-191.65861732,0.00019597,2]
[367204614,1750699843094,-421.33517862,0.00019597,2]
[367204615,1750699843105,-460.0,0.00019597,2]
[367204617,1750699843115,-4222.14,0.00019597,2]
[367204619,1750699843124,-385.65380767,0.00019597,2]
[367204621,1750699843134,-460.0,0.00019597,2]
[367204623,1750699843145,-1761.71,0.00019597,2]
[367204624,1750699843154,-460.0,0.00019597,2]
[367204626,1750699843164,-1617.64,0.00019598,2]
[367204628,1750699843174,-849.18,0.00019598,2]
[367204630,1750699843183,-1631.26,0.00019598,2]
[367204632,1750699843193,-460.0,0.00019598,2]
[367204634,1750699843203,-949.61,0.00019598,2]
[367204636,1750699843212,-243.43004324,0.00019598,2]
[367204638,1750699843222,-815.0,0.00019598,2]
[367204640,1750699843231,-441.49645407,0.00019598,2]
[367204642,1750699843241,-460.0,0.00019598,2]
[367204644,1750699843253,-460.0,0.00019598,2]
[367204646,1750699843263,-1060.44,0.00019598,2]
[367204648,1750699843272,-460.0,0.00019598,2]
[367204651,1750699843282,-460.0,0.00019598,2]
[367204654,1750699843291,-460.0,0.00019598,2]
[367204656,1750699843301,-436.56957506,0.00019598,2]
[367204658,1750699843310,-460.0,0.00019598,2]
[367204660,1750699843320,-840.81,0.00019598,2]
[367204662,1750699843329,-1154.75,0.00019598,2]
[367204664,1750699843340,-460.0,0.00019598,2]
[367204666,1750699843349,-460.0,0.00019598,2]
[367204668,1750699843359,-507.29,0.00019598,2]
[367204670,1750699843368,-460.0,0.00019598,2]
[367204672,1750699843378,-432.20295532,0.00019598,2]
[367204673,1750699843387,-460.0,0.00019598,2]
[367204674,1750699843397,-448.38069221,0.00019598,2]
[367204675,1750699843407,-460.0,0.00019598,2]
[367204676,1750699843416,-460.0,0.00019598,2]
[367204677,1750699843426,-842.15,0.00019598,2]
[367204678,1750699843436,-913.09,0.00019598,2]
[367204680,1750699843445,-611.86,0.00019598,2]
[367204682,1750699843455,-460.0,0.00019598,2]
[367204683,1750699843464,-3823.63,0.00019598,2]
[367204684,1750699843474,-581.78,0.00019598,2]
[367204685,1750699843484,-1428.61,0.00019598,2]
[367204686,1750699843497,-736.64,0.00019598,2]
[367204687,1750699843507,-741.6,0.00019598,2]
[367204688,1750699843517,-476.75,0.00019598,2]
[367204689,1750699843527,-693.06,0.00019598,2]
[367204690,1750699843537,-337.93745096,0.00019598,2]
[367204691,1750699843547,-1040.93,0.00019598,2]
[367204692,1750699843556,-800.11,0.00019598,2]
[367204693,1750699843567,-460.0,0.00019598,2]
[367204694,1750699843577,-460.0,0.00019598,2]
[367204695,1750699843586,-1279.45,0.00019598,2]
[367204696,1750699843602,-1034.09,0.00019598,2]
[367204697,1750699843611,-551.64,0.00019598,2]
[367204698,1750699843621,-460.0,0.00019598,2]
[367204699,1750699843836,-575.73,0.00019598,2]
[367204701,1750699843846,-1009.37,0.00019598,2]
[367204703,1750699843856,-1222.04,0.00019598,2]
[367204705,1750699843865,-466.89819389,0.00019598,2]
[367204706,1750699843875,-460.0,0.00019598,2]
[367204707,1750699843884,-1395.18,0.00019598,2]
[367204708,1750699843893,-972.36,0.00019598,2]
[367204709,1750699843903,-500.0,0.00019599,2]
[367204710,1750699843913,-500.0,0.00019599,2]
[367204711,1750699843922,-151.0,0.000196,2]
[367204712,1750699843932,-500.0,0.00019604,2]
[367204713,1750699843942,-500.0,0.00019605,2]
[367204714,1750699843953,-500.0,0.00019605,2]
[367204715,1750699843963,-500.0,0.00019605,2]
[367204716,1750699843973,-500.0,0.00019605,2]
[367204717,1750699843982,-531.87,0.00019606,2]
[367204718,1750699843992,-460.0,0.00019606,2]
[367204719,1750699844005,-405.5032223,0.00019606,2]
[367204720,1750699844015,-350.85700147,0.00019606,2]
[367204721,1750699844025,-460.0,0.00019606,2]
[367204722,1750699844035,-460.0,0.00019606,2]
[367204723,1750699844045,-460.0,0.00019606,2]
[367204724,1750699844055,-460.0,0.00019606,2]
[367204725,1750699844065,-460.0,0.00019606,2]
[367204726,1750699844075,-460.0,0.00019606,2]
[367204727,1750699844085,-460.0,0.00019606,2]
[367204728,1750699844095,-460.0,0.00019606,2]
[367204729,1750699844104,-500.0,0.00019606,2]
[367204730,1750699844115,-500.0,0.00019606,2]
[367204731,1750699844124,-500.0,0.00019606,2]
[367204732,1750699844134,-500.0,0.00019606,2]
[367204733,1750699844144,-2209.43,0.00019606,2]
[367204734,1750699844154,-460.0,0.00019606,2]
[367204735,1750699844163,-460.0,0.00019606,2]
[367204736,1750699844173,-672.85,0.00019606,2]
[367204737,1750699844182,-928.39,0.00019606,2]
[367204738,1750699844192,-432.1869498,0.00019606,2]
[367204739,1750699844201,-433.75851988,0.00019606,2]
[367204740,1750699844211,-460.0,0.00019606,2]
[367204741,1750699844220,-460.0,0.00019606,2]
[367204742,1750699844230,-460.0,0.00019606,2]
[367204743,1750699844239,-435.22194498,0.00019606,2]
[367204744,1750699844254,-286.24425651,0.00019606,2]
[367204745,1750699844263,-460.0,0.00019606,2]
[367204746,1750699844273,-435.36204186,0.00019606,2]
[367204747,1750699844282,-460.0,0.00019606,2]
[367204748,1750699844291,-460.0,0.00019606,2]
[367204749,1750699844301,-372.28779309,0.00019606,2]
[367204750,1750699844311,-657.23,0.00019606,2]
[367204751,1750699844320,-401.26617227,0.00019606,2]
[367204752,1750699844330,-460.0,0.00019606,2]
[367204753,1750699844349,-1828.02,0.00019606,2]
[367204754,1750699844360,-460.0,0.00019606,2]
[367204755,1750699844371,-460.0,0.00019606,2]
[367204756,1750699844381,-284.15,0.00019606,2]
[367204757,1750699844392,-1253.49,0.00019606,2]
[367204758,1750699844402,-522.98,0.00019606,2]
[367204759,1750699844412,-460.0,0.00019606,2]
[367204760,1750699844422,-484.53,0.00019606,2]
[367204761,1750699844432,-781.06,0.00019606,2]
[367204762,1750699844443,-4727.82,0.00019606,2]
[367204763,1750699844453,-688.76,0.00019606,2]
[367204764,1750699844463,-3402.39,0.00019606,2]
[367204765,1750699844473,-656.68,0.00019606,2]
[367204766,1750699844483,-500.0,0.00019606,2]
[367204767,1750699844496,-500.0,0.00019606,2]
[367204768,1750699844507,-500.0,0.00019606,2]
[367204769,1750699844517,-500.0,0.00019606,2]
[367204770,1750699844527,-500.0,0.00019606,2]
[367204771,1750699844538,-4730.75,0.00019606,2]
[367204772,1750699844548,-460.0,0.00019606,2]
[367204773,1750699844559,-2780.09,0.00019606,2]
[367204774,1750699844576,-460.0,0.00019606,2]
[367204775,1750699844586,-779.51,0.00019606,2]
[367204776,1750699844596,-6282.25,0.00019606,2]
[367204777,1750699844607,-939.55,0.00019606,2]
[367204778,1750699844618,-460.0,0.00019606,2]
[367204779,1750699844629,-412.96735089,0.00019606,2]
[367204780,1750699844639,-460.0,0.00019607,2]
[367204781,1750699844651,-460.0,0.00019607,2]
[367204782,1750699844661,-290.77228399,0.00019607,2]
[367204783,1750699844672,-377.2022589,0.00019607,2]
[367204784,1750699844682,-598.14986075,0.00019607,2]
[367204785,1750699844692,-177.78707595,0.00019607,2]
[367204786,1750699844702,-460.0,0.00019607,2]
[367204787,1750699844712,-460.0,0.00019607,2]
[367204788,1750699844721,-460.0,0.00019607,2]
[367204789,1750699844731,-527.6179036,0.00019607,2]
[367204790,1750699844742,-460.0,0.00019607,2]
[367204791,1750699844755,-460.0,0.00019607,2]
[367204792,1750699844765,-460.0,0.00019607,2]
[367204793,1750699844775,-460.0,0.00019607,2]
[367204794,1750699844785,-460.0,0.00019607,2]
[367204795,1750699844795,-460.0,0.00019607,2]
[367204796,1750699844805,-460.880334,0.00019607,2]
[367204797,1750699844815,-460.0,0.00019607,2]
[367204798,1750699844825,-460.0,0.00019607,2]
[367204799,1750699844835,-1164.12,0.00019607,2]
[367204800,1750699844845,-500.0,0.00019607,2]
[367204801,1750699844855,-898.3,0.00019607,2]
[367204802,1750699844865,-435.28217313,0.00019607,2]
[367204803,1750699844875,-460.0,0.00019607,2]
[367204804,1750699844885,-460.0,0.00019607,2]
[367204805,1750699844895,-460.0,0.00019607,2]
[367204806,1750699844906,-460.0,0.00019607,2]
[367204807,1750699844915,-460.0,0.00019607,2]
[367204808,1750699844925,-460.0,0.00019607,2]
[367204809,1750699844935,-460.0,0.00019607,2]
[367204810,1750699844944,-286.65482973,0.00019607,2]
[367204811,1750699844954,-460.0,0.00019607,2]
[367204812,1750699844964,-625.38,0.00019607,2]
[367204813,1750699844974,-460.0,0.00019607,2]
[367204814,1750699844983,-460.0,0.00019607,2]
[367204815,1750699844993,-460.0,0.00019607,2]
[367204816,1750699845004,-671.46,0.00019607,2]
[367204817,1750699845014,-500.0,0.00019607,2]
[367204818,1750699845024,-460.0,0.00019607,2]
[367204819,1750699845034,-442.19252578,0.00019607,2]
[367204820,1750699845044,-460.0,0.00019607,2]
[367204821,1750699845054,-460.0,0.00019607,2]
[367204822,1750699845064,-460.0,0.00019607,2]
[367204823,1750699845073,-460.0,0.00019607,2]
[367204824,1750699845083,-460.0,0.00019607,2]
[367204825,1750699845093,-812.25,0.00019607,2]
[367204826,1750699845103,-460.0,0.00019607,2]
[367204827,1750699845112,-460.0,0.00019607,2]
[367204828,1750699845122,-461.08894848,0.00019607,2]
[367204829,1750699845132,-757.49,0.00019607,2]
[367204830,1750699845142,-460.0,0.00019607,2]
[367204831,1750699845151,-494.14,0.00019607,2]